[Event "Titled Tuesday Blitz July 26 Early 2022"]
[White "Dubov, Daniil"]
[Black "Maksimovic, Bojan"]
[WhiteFideId "24126055"]
[BlackFideId "14408120"]
[WhiteElo "2791"]
[BlackElo "2453"]
[Result "1/2-1/2"]
[Round "05"]
[TimeControl "180+1"]
[Date "2022.07.26"]
[WhiteClock "0:00:08"]
[BlackClock "0:00:09"]

1. Nf3 {[%clk 0:02:56]}  Nf6 {[%clk 0:02:58]} 2. g3 {[%clk 0:02:56]}  g6 {[%clk 0:02:58]} 3. Bg2 {[%clk 0:02:56]}  Bg7 {[%clk 0:02:58]} 4. b3 {[%clk 0:02:57]}  d6 {[%clk 0:02:57]} 5. d4 {[%clk 0:02:56]}  c5 {[%clk 0:02:57]} 6. c4 {[%clk 0:02:53]}  Ne4 {[%clk 0:02:56]} 7. Bb2 {[%clk 0:02:53]}  Qa5+ {[%clk 0:02:56]} 8. Nbd2 {[%clk 0:02:51]}  Nc6 {[%clk 0:02:47]} 9. e3 {[%clk 0:02:32]}  O-O {[%clk 0:02:36]} 10. a3 {[%clk 0:02:12]}  Nxd2 {[%clk 0:02:36]} 11. Qxd2 {[%clk 0:02:11]}  Qxd2+ {[%clk 0:02:36]} 12. Kxd2 {[%clk 0:02:10]}  Na5 {[%clk 0:02:36]} 13. Kc3 {[%clk 0:02:05]}  Be6 {[%clk 0:02:19]} 14. Nd2 {[%clk 0:01:56]}  Rac8 {[%clk 0:02:10]} 15. Kd3 {[%clk 0:01:52]}  cxd4 {[%clk 0:02:04]} 16. Bxd4 {[%clk 0:01:52]}  Nxb3 {[%clk 0:01:55]} 17. Nxb3 {[%clk 0:01:50]}  Bxc4+ {[%clk 0:01:54]} 18. Kd2 {[%clk 0:01:51]}  Bxb3 {[%clk 0:01:52]} 19. Bxg7 {[%clk 0:01:51]}  Kxg7 {[%clk 0:01:52]} 20. Rhb1 {[%clk 0:01:49]}  Rc2+ {[%clk 0:01:45]} 21. Ke1 {[%clk 0:01:46]}  Bc4 {[%clk 0:01:42]} 22. Bf1 {[%clk 0:01:34]}  Bxf1 {[%clk 0:01:41]} 23. Kxf1 {[%clk 0:01:34]}  b6 {[%clk 0:01:41]} 24. a4 {[%clk 0:01:35]}  Rfc8 {[%clk 0:01:32]} 25. a5 {[%clk 0:01:26]}  bxa5 {[%clk 0:01:33]} 26. Kg2 {[%clk 0:01:17]}  Rd2 {[%clk 0:01:28]} 27. Rb7 {[%clk 0:01:09]}  Rcc2 {[%clk 0:01:23]} 28. Rf1 {[%clk 0:01:09]}  Kf6 {[%clk 0:01:21]} 29. Rxa7 {[%clk 0:01:09]}  Ra2 {[%clk 0:01:22]} 30. g4 {[%clk 0:01:09]}  Rdc2 {[%clk 0:01:13]} 31. Kg3 {[%clk 0:01:03]}  a4 {[%clk 0:01:12]} 32. h4 {[%clk 0:01:02]}  h6 {[%clk 0:01:11]} 33. g5+ {[%clk 0:00:50]}  hxg5 {[%clk 0:01:11]} 34. hxg5+ {[%clk 0:00:51]}  Ke6 {[%clk 0:01:11]} 35. f4 {[%clk 0:00:32]}  Rc3 {[%clk 0:00:40]} 36. Kf3 {[%clk 0:00:31]}  a3 {[%clk 0:00:39]} 37. Rb1 {[%clk 0:00:28]}  Rb2 {[%clk 0:00:24]} 38. Rxa3 {[%clk 0:00:27]}  Rxb1 {[%clk 0:00:23]} 39. Rxc3 {[%clk 0:00:27]}  Kf5 {[%clk 0:00:24]} 40. Rc7 {[%clk 0:00:26]}  Ke6 {[%clk 0:00:24]} 41. e4 {[%clk 0:00:23]}  Rb3+ {[%clk 0:00:23]} 42. Kf2 {[%clk 0:00:23]}  f6 {[%clk 0:00:22]} 43. gxf6 {[%clk 0:00:21]}  Kxf6 {[%clk 0:00:23]} 44. Ra7 {[%clk 0:00:20]}  Rc3 {[%clk 0:00:22]} 45. Ra6 {[%clk 0:00:18]}  Ke6 {[%clk 0:00:20]} 46. Ke2 {[%clk 0:00:18]}  g5 {[%clk 0:00:18]} 47. fxg5 {[%clk 0:00:16]}  Ke5 {[%clk 0:00:17]} 48. Ra7 {[%clk 0:00:10]}  e6 {[%clk 0:00:17]} 49. Ra4 {[%clk 0:00:09]}  Rg3 {[%clk 0:00:15]} 50. Kf2 {[%clk 0:00:09]}  Rxg5 {[%clk 0:00:16]} 51. Kf3 {[%clk 0:00:10]}  Rg8 {[%clk 0:00:13]} 52. Ra5+ {[%clk 0:00:10]}  Kf6 {[%clk 0:00:13]} 53. Ra6 {[%clk 0:00:09]}  Ke5 {[%clk 0:00:10]} 54. Ra5+ {[%clk 0:00:09]}  Kd4 {[%clk 0:00:11]} 55. Ra4+ {[%clk 0:00:10]}  Kc5 {[%clk 0:00:11]} 56. Ra5+ {[%clk 0:00:09]}  Kb6 {[%clk 0:00:12]} 57. Ra1 {[%clk 0:00:09]}  Rh8 {[%clk 0:00:10]} 58. Rc1 {[%clk 0:00:08]}  Kb5 {[%clk 0:00:09]} 59. Kf4 {[%clk 0:00:08]}  Rf8+ {[%clk 0:00:10]} 60. Ke3 {[%clk 0:00:08]}  Kb6 {[%clk 0:00:10]} 61. Rc2 {[%clk 0:00:08]}  Rf7 {[%clk 0:00:10]} 62. Rc1 {[%clk 0:00:08]}  Rc7 {[%clk 0:00:11]} 63. Rb1+ {[%clk 0:00:08]}  Kc6 {[%clk 0:00:11]} 64. Rh1 {[%clk 0:00:09]}  Ra7 {[%clk 0:00:11]} 65. Rc1+ {[%clk 0:00:08]}  Kd7 {[%clk 0:00:11]} 66. Rc2 {[%clk 0:00:06]}  Ra3+ {[%clk 0:00:11]} 67. Ke2 {[%clk 0:00:07]}  Ke7 {[%clk 0:00:12]} 68. Rc6 {[%clk 0:00:07]}  Rb3 {[%clk 0:00:11]} 69. Ra6 {[%clk 0:00:07]}  Kd7 {[%clk 0:00:10]} 70. Kd2 {[%clk 0:00:07]}  Kc7 {[%clk 0:00:10]} 71. Ke2 {[%clk 0:00:07]}  Rb6 {[%clk 0:00:09]} 72. Ra5 {[%clk 0:00:07]}  Kc6 {[%clk 0:00:10]} 73. Rh5 {[%clk 0:00:07]}  Rb3 {[%clk 0:00:10]} 74. Rh8 {[%clk 0:00:07]}  Kc5 {[%clk 0:00:10]} 75. Rd8 {[%clk 0:00:06]}  e5 {[%clk 0:00:08]} 76. Rd7 {[%clk 0:00:06]}  Ra3 {[%clk 0:00:08]} 77. Rd8 {[%clk 0:00:06]}  Ra2+ {[%clk 0:00:08]} 78. Kd3 {[%clk 0:00:06]}  Ra3+ {[%clk 0:00:09]} 79. Kd2 {[%clk 0:00:06]}  Ra6 {[%clk 0:00:08]} 80. Kc3 {[%clk 0:00:06]}  Ra3+ {[%clk 0:00:07]} 81. Kd2 {[%clk 0:00:06]}  Rh3 {[%clk 0:00:07]} 82. Ke2 {[%clk 0:00:05]}  Rg3 {[%clk 0:00:05]} 83. Kd2 {[%clk 0:00:05]}  Rg4 {[%clk 0:00:05]} 84. Kd3 {[%clk 0:00:06]}  Rg3+ {[%clk 0:00:05]} 85. Kd2 {[%clk 0:00:06]}  Rf3 {[%clk 0:00:05]} 86. Ke2 {[%clk 0:00:06]}  Rb3 {[%clk 0:00:05]} 87. Kd2 {[%clk 0:00:06]}  Kd4 {[%clk 0:00:05]} 88. Rxd6+ {[%clk 0:00:06]}  Kxe4 {[%clk 0:00:06]} 89. Rh6 {[%clk 0:00:05]}  Rb2+ {[%clk 0:00:06]} 90. Ke1 {[%clk 0:00:05]}  Kf4 {[%clk 0:00:05]} 91. Rh4+ {[%clk 0:00:05]}  Kf3 {[%clk 0:00:04]} 92. Rh3+ {[%clk 0:00:05]}  Kg4 {[%clk 0:00:04]} 93. Ra3 {[%clk 0:00:05]}  e4 {[%clk 0:00:05]} 94. Rc3 {[%clk 0:00:06]}  Kf4 {[%clk 0:00:05]} 95. Ra3 {[%clk 0:00:06]}  Rh2 {[%clk 0:00:05]} 96. Rb3 {[%clk 0:00:06]}  Rg2 {[%clk 0:00:05]} 97. Ra3 {[%clk 0:00:06]}  Rg8 {[%clk 0:00:05]} 98. Rb3 {[%clk 0:00:06]}  Ra8 {[%clk 0:00:05]} 99. Ke2 {[%clk 0:00:06]}  Ra2+ {[%clk 0:00:05]} 100. Ke1 {[%clk 0:00:06]}  e3 {[%clk 0:00:06]} 101. Rb8 {[%clk 0:00:07]}  Kf3 {[%clk 0:00:06]} 102. Rf8+ {[%clk 0:00:07]}  Ke4 {[%clk 0:00:07]} 103. Re8+ {[%clk 0:00:07]}  Kf3 {[%clk 0:00:08]} 104. Rf8+ {[%clk 0:00:07]}  Ke4 {[%clk 0:00:08]} 105. Re8+ {[%clk 0:00:08]}  Kf3 {[%clk 0:00:09]} 106. Rf8+ {[%clk 0:00:08]} 1/2-1/2


[Site "https://www.chess.com"]

[Event "Titled Tuesday Blitz July 26 Early 2022"]
[White "Garrido, Denis"]
[Black "Pfreundt, Jakob"]
[WhiteFideId "601217"]
[BlackFideId "12918156"]
[WhiteElo "2414"]
[BlackElo "2345"]
[Result "1-0"]
[Round "05"]
[TimeControl "180+1"]
[Date "2022.07.27"]
[WhiteClock "0:00:13"]
[BlackClock "0:00:01"]

1. e4 {[%clk 0:03:00]}  e5 {[%clk 0:02:59]} 2. Nf3 {[%clk 0:03:00]}  Nf6 {[%clk 0:02:59]} 3. Nxe5 {[%clk 0:03:00]}  d6 {[%clk 0:02:59]} 4. Nf3 {[%clk 0:03:00]}  Nxe4 {[%clk 0:03:00]} 5. d4 {[%clk 0:03:01]}  d5 {[%clk 0:03:00]} 6. Bd3 {[%clk 0:03:01]}  Be7 {[%clk 0:03:00]} 7. O-O {[%clk 0:03:01]}  Bf5 {[%clk 0:03:00]} 8. Re1 {[%clk 0:02:56]}  O-O {[%clk 0:03:00]} 9. Nbd2 {[%clk 0:02:52]}  Nd6 {[%clk 0:02:59]} 10. Nf1 {[%clk 0:02:52]}  c6 {[%clk 0:02:52]} 11. Bf4 {[%clk 0:02:48]}  Bxd3 {[%clk 0:02:47]} 12. Qxd3 {[%clk 0:02:49]}  Na6 {[%clk 0:02:45]} 13. h4 {[%clk 0:02:48]}  Nc7 {[%clk 0:02:31]} 14. Ng5 {[%clk 0:02:47]}  Bxg5 {[%clk 0:02:24]} 15. Bxg5 {[%clk 0:02:39]}  f6 {[%clk 0:02:19]} 16. Bf4 {[%clk 0:02:38]}  Qd7 {[%clk 0:02:17]} 17. Ng3 {[%clk 0:02:29]}  Rae8 {[%clk 0:02:16]} 18. Kf1 {[%clk 0:02:26]}  Rxe1+ {[%clk 0:02:04]} 19. Rxe1 {[%clk 0:02:27]}  Re8 {[%clk 0:02:02]} 20. Rxe8+ {[%clk 0:02:24]}  Ncxe8 {[%clk 0:02:02]} 21. f3 {[%clk 0:02:18]}  Qe6 {[%clk 0:01:51]} 22. b3 {[%clk 0:02:11]}  g6 {[%clk 0:01:48]} 23. Kf2 {[%clk 0:01:42]}  Kf7 {[%clk 0:01:47]} 24. h5 {[%clk 0:01:41]}  Ng7 {[%clk 0:01:38]} 25. Bxd6 {[%clk 0:01:26]}  Qxd6 {[%clk 0:01:37]} 26. h6 {[%clk 0:01:24]}  Ne6 {[%clk 0:01:35]} 27. Ne2 {[%clk 0:01:17]}  Qh2 {[%clk 0:01:32]} 28. Qe3 {[%clk 0:01:15]}  Qh4+ {[%clk 0:01:25]} 29. Kg1 {[%clk 0:01:12]}  Qe1+ {[%clk 0:01:19]} 30. Kh2 {[%clk 0:01:11]}  Qh4+ {[%clk 0:01:20]} 31. Kg1 {[%clk 0:01:11]}  g5 {[%clk 0:01:15]} 32. c4 {[%clk 0:01:08]}  Qe1+ {[%clk 0:01:14]} 33. Kh2 {[%clk 0:01:09]}  Qh4+ {[%clk 0:01:15]} 34. Kg1 {[%clk 0:01:09]}  Qxh6 {[%clk 0:00:45]} 35. cxd5 {[%clk 0:01:09]}  cxd5 {[%clk 0:00:46]} 36. Qc3 {[%clk 0:00:52]}  Qg6 {[%clk 0:00:27]} 37. Qc8 {[%clk 0:00:47]}  Qd3 {[%clk 0:00:25]} 38. Qd7+ {[%clk 0:00:45]}  Kg6 {[%clk 0:00:22]} 39. Qxe6 {[%clk 0:00:44]}  Qb1+ {[%clk 0:00:21]} 40. Kh2 {[%clk 0:00:43]}  Qxa2 {[%clk 0:00:22]} 41. Ng3 {[%clk 0:00:38]}  Qc2 {[%clk 0:00:20]} 42. Qg8+ {[%clk 0:00:37]}  Kh6 {[%clk 0:00:20]} 43. Qf8+ {[%clk 0:00:34]}  Kg6 {[%clk 0:00:20]} 44. Qe8+ {[%clk 0:00:34]}  Kg7 {[%clk 0:00:18]} 45. Qd7+ {[%clk 0:00:34]}  Kg6 {[%clk 0:00:16]} 46. Qxd5 {[%clk 0:00:34]}  h5 {[%clk 0:00:15]} 47. Qe4+ {[%clk 0:00:34]}  Qxe4 {[%clk 0:00:15]} 48. fxe4 {[%clk 0:00:33]}  a5 {[%clk 0:00:12]} 49. Nf5 {[%clk 0:00:33]}  b5 {[%clk 0:00:13]} 50. Nd6 {[%clk 0:00:32]}  a4 {[%clk 0:00:13]} 51. bxa4 {[%clk 0:00:33]}  bxa4 {[%clk 0:00:14]} 52. Nc4 {[%clk 0:00:32]}  g4 {[%clk 0:00:11]} 53. Kg3 {[%clk 0:00:33]}  Kg5 {[%clk 0:00:11]} 54. d5 {[%clk 0:00:33]}  h4+ {[%clk 0:00:12]} 55. Kf2 {[%clk 0:00:33]}  Kg6 {[%clk 0:00:09]} 56. Ke3 {[%clk 0:00:29]}  f5 {[%clk 0:00:09]} 57. d6 {[%clk 0:00:28]}  h3 {[%clk 0:00:02]} 58. gxh3 {[%clk 0:00:28]}  gxh3 {[%clk 0:00:03]} 59. d7 {[%clk 0:00:16]}  h2 {[%clk 0:00:03]} 60. d8=Q {[%clk 0:00:16]}  h1=Q {[%clk 0:00:03]} 61. Ne5+ {[%clk 0:00:16]}  Kg7 {[%clk 0:00:03]} 62. Qe7+ {[%clk 0:00:17]}  Kh8 {[%clk 0:00:01]} 63. Qf8+ {[%clk 0:00:15]}  Kh7 {[%clk 0:00:02]} 64. Qf7+ {[%clk 0:00:15]}  Kh6 {[%clk 0:00:02]} 65. Qf6+ {[%clk 0:00:13]}  Kh7 {[%clk 0:00:01]} 66. Qxf5+ {[%clk 0:00:13]}  Kg7 {[%clk 0:00:01]} 67. Qf7+ {[%clk 0:00:13]}  Kh6 {[%clk 0:00:01]} 68. Qf8+ {[%clk 0:00:12]}  Kh7 {[%clk 0:00:01]} 69. Qf7+ {[%clk 0:00:13]}  Kh6 {[%clk 0:00:01]} 70. Nf3 {[%clk 0:00:13]} 1-0


[Site "https://www.chess.com"]

[Event "Titled Tuesday Blitz July 26 Early 2022"]
[White "Guz, Ari"]
[Black "Timofeev, Artyom"]
[WhiteFideId "2825759"]
[BlackFideId "4140419"]
[WhiteElo "1913"]
[BlackElo "2578"]
[Result "0-1"]
[Round "05"]
[TimeControl "180+1"]
[Date "2022.07.26"]
[WhiteClock "0:00:05"]
[BlackClock "0:00:27"]

1. e4 {[%clk 0:03:00]}  c6 {[%clk 0:02:59]} 2. Nf3 {[%clk 0:03:00]}  d5 {[%clk 0:02:59]} 3. Nc3 {[%clk 0:03:00]}  dxe4 {[%clk 0:02:58]} 4. Nxe4 {[%clk 0:03:01]}  Nf6 {[%clk 0:02:59]} 5. Qe2 {[%clk 0:03:01]}  Bf5 {[%clk 0:02:57]} 6. Nxf6+ {[%clk 0:02:57]}  gxf6 {[%clk 0:02:56]} 7. d3 {[%clk 0:02:57]}  h5 {[%clk 0:02:56]} 8. g3 {[%clk 0:02:56]}  Qd7 {[%clk 0:02:48]} 9. Bg2 {[%clk 0:02:54]}  Na6 {[%clk 0:02:43]} 10. Bf4 {[%clk 0:02:32]}  e6 {[%clk 0:02:41]} 11. a3 {[%clk 0:02:16]}  Bg4 {[%clk 0:02:34]} 12. h3 {[%clk 0:02:14]}  Bxf3 {[%clk 0:02:34]} 13. Bxf3 {[%clk 0:02:14]}  h4 {[%clk 0:02:34]} 14. gxh4 {[%clk 0:02:07]}  Rxh4 {[%clk 0:02:31]} 15. Bg3 {[%clk 0:02:07]}  Rh8 {[%clk 0:02:29]} 16. h4 {[%clk 0:02:06]}  O-O-O {[%clk 0:02:27]} 17. O-O-O {[%clk 0:02:04]}  Nc7 {[%clk 0:02:20]} 18. h5 {[%clk 0:01:59]}  Nd5 {[%clk 0:02:12]} 19. Kb1 {[%clk 0:01:58]}  Ne7 {[%clk 0:02:02]} 20. Qe3 {[%clk 0:01:53]}  Nf5 {[%clk 0:01:45]} 21. Qxa7 {[%clk 0:01:51]}  Bd6 {[%clk 0:01:44]} 22. Bxd6 {[%clk 0:01:44]}  Qxd6 {[%clk 0:01:44]} 23. Be4 {[%clk 0:01:19]}  Ne7 {[%clk 0:01:30]} 24. h6 {[%clk 0:01:16]}  f5 {[%clk 0:01:27]} 25. Bf3 {[%clk 0:01:14]}  Qd4 {[%clk 0:01:23]} 26. Qxd4 {[%clk 0:01:02]}  Rxd4 {[%clk 0:01:23]} 27. Bh5 {[%clk 0:00:55]}  Rxh6 {[%clk 0:01:03]} 28. Bxf7 {[%clk 0:00:55]}  Rf6 {[%clk 0:01:04]} 29. Rh7 {[%clk 0:00:48]}  Nd5 {[%clk 0:01:00]} 30. Rg1 {[%clk 0:00:42]}  Rg4 {[%clk 0:00:59]} 31. Rxg4 {[%clk 0:00:38]}  fxg4 {[%clk 0:00:59]} 32. Bh5 {[%clk 0:00:39]}  Rf4 {[%clk 0:00:53]} 33. Kc1 {[%clk 0:00:26]}  Nf6 {[%clk 0:00:51]} 34. Bf7 {[%clk 0:00:23]}  Kd7 {[%clk 0:00:51]} 35. Rh2 {[%clk 0:00:22]}  e5 {[%clk 0:00:36]} 36. Kd2 {[%clk 0:00:21]}  Kd6 {[%clk 0:00:35]} 37. Ke3 {[%clk 0:00:20]}  Rf3+ {[%clk 0:00:35]} 38. Ke2 {[%clk 0:00:20]}  Rf4 {[%clk 0:00:35]} 39. Bc4 {[%clk 0:00:20]}  b5 {[%clk 0:00:35]} 40. Bb3 {[%clk 0:00:20]}  c5 {[%clk 0:00:34]} 41. Bf7 {[%clk 0:00:18]}  Ke7 {[%clk 0:00:34]} 42. Bg6 {[%clk 0:00:18]}  Kf8 {[%clk 0:00:32]} 43. Ke3 {[%clk 0:00:16]}  Nd5+ {[%clk 0:00:31]} 44. Ke2 {[%clk 0:00:15]}  Nf6 {[%clk 0:00:32]} 45. Ke3 {[%clk 0:00:05]}  g3 {[%clk 0:00:28]} 46. fxg3 {[%clk 0:00:03]}  Ng4+ {[%clk 0:00:28]} 47. Kd2 {[%clk 0:00:03]}  Rf6 {[%clk 0:00:29]} 48. Rh4 {[%clk 0:00:01]}  Rxg6 {[%clk 0:00:29]} 49. b3 {[%clk 0:00:02]}  Ke7 {[%clk 0:00:29]} 50. a4 {[%clk 0:00:03]}  bxa4 {[%clk 0:00:29]} 51. bxa4 {[%clk 0:00:04]}  Nf6 {[%clk 0:00:28]} 52. Rc4 {[%clk 0:00:03]}  Kd6 {[%clk 0:00:28]} 53. a5 {[%clk 0:00:03]}  Rg8 {[%clk 0:00:27]} 54. a6 {[%clk 0:00:03]}  Ra8 {[%clk 0:00:27]} 55. Ra4 {[%clk 0:00:04]}  Nd5 {[%clk 0:00:27]} 56. c4 {[%clk 0:00:03]}  Nb4 {[%clk 0:00:25]} 57. a7 {[%clk 0:00:03]}  Nc6 {[%clk 0:00:25]} 58. Ke3 {[%clk 0:00:03]}  Rxa7 {[%clk 0:00:25]} 59. Rxa7 {[%clk 0:00:03]}  Nxa7 {[%clk 0:00:26]} 60. Ke4 {[%clk 0:00:04]}  Ke6 {[%clk 0:00:26]} 61. g4 {[%clk 0:00:05]}  Nc6 {[%clk 0:00:26]} 62. g5 {[%clk 0:00:05]}  Ne7 {[%clk 0:00:27]} 0-1


[Site "https://www.chess.com"]

[Event "Titled Tuesday Blitz July 26 Early 2022"]
[White "Guzman, Christopher"]
[Black "Mikhalsky, Vladimir"]
[WhiteFideId "6405096"]
[BlackFideId "14144352"]
[WhiteElo "2244"]
[BlackElo "2301"]
[Result "1-0"]
[Round "05"]
[TimeControl "180+1"]
[Date "2022.07.27"]
[WhiteClock "0:00:28"]
[BlackClock "0:00:06"]

1. e4 {[%clk 0:03:00]}  g6 {[%clk 0:02:59]} 2. d4 {[%clk 0:02:59]}  Bg7 {[%clk 0:03:00]} 3. Nc3 {[%clk 0:03:00]}  d6 {[%clk 0:03:00]} 4. Be3 {[%clk 0:02:46]}  a6 {[%clk 0:02:58]} 5. f3 {[%clk 0:02:46]}  b5 {[%clk 0:02:58]} 6. h4 {[%clk 0:02:46]}  h5 {[%clk 0:02:57]} 7. Qd2 {[%clk 0:02:45]}  Nf6 {[%clk 0:02:55]} 8. Nd1 {[%clk 0:02:45]}  O-O {[%clk 0:02:48]} 9. Nf2 {[%clk 0:02:44]}  Nc6 {[%clk 0:02:45]} 10. Ngh3 {[%clk 0:02:42]}  b4 {[%clk 0:02:27]} 11. Ng5 {[%clk 0:02:38]}  e5 {[%clk 0:02:24]} 12. d5 {[%clk 0:02:32]}  Nd4 {[%clk 0:02:24]} 13. c3 {[%clk 0:02:29]}  bxc3 {[%clk 0:02:24]} 14. bxc3 {[%clk 0:02:29]}  Nb5 {[%clk 0:02:24]} 15. a4 {[%clk 0:02:28]}  Na7 {[%clk 0:02:24]} 16. Nfh3 {[%clk 0:02:21]}  c5 {[%clk 0:02:12]} 17. Bc4 {[%clk 0:02:18]}  a5 {[%clk 0:02:02]} 18. O-O {[%clk 0:02:10]}  Nd7 {[%clk 0:02:02]} 19. Rfb1 {[%clk 0:02:07]}  Nb6 {[%clk 0:02:00]} 20. Bd3 {[%clk 0:02:03]}  Bd7 {[%clk 0:01:59]} 21. Qc2 {[%clk 0:01:56]}  Rb8 {[%clk 0:01:57]} 22. Nf2 {[%clk 0:01:54]}  Qe8 {[%clk 0:01:57]} 23. c4 {[%clk 0:01:31]}  Bxa4 {[%clk 0:01:43]} 24. Qc3 {[%clk 0:01:31]}  Bd7 {[%clk 0:01:24]} 25. Qxa5 {[%clk 0:01:29]}  Nac8 {[%clk 0:01:23]} 26. Qd2 {[%clk 0:01:19]}  Bh6 {[%clk 0:01:21]} 27. Ra2 {[%clk 0:01:10]}  f6 {[%clk 0:01:17]} 28. Ngh3 {[%clk 0:01:09]}  Bxe3 {[%clk 0:01:17]} 29. Qxe3 {[%clk 0:01:09]}  Nxc4 {[%clk 0:01:14]} 30. Qc1 {[%clk 0:01:00]}  Rxb1 {[%clk 0:01:05]} 31. Qxb1 {[%clk 0:01:00]}  N4b6 {[%clk 0:00:59]} 32. f4 {[%clk 0:00:58]}  c4 {[%clk 0:00:46]} 33. Bf1 {[%clk 0:00:54]}  Qd8 {[%clk 0:00:45]} 34. Qc1 {[%clk 0:00:44]}  Qc7 {[%clk 0:00:39]} 35. Rc2 {[%clk 0:00:43]}  Kg7 {[%clk 0:00:34]} 36. Bxc4 {[%clk 0:00:41]}  Nxc4 {[%clk 0:00:35]} 37. Rxc4 {[%clk 0:00:41]}  Qb6 {[%clk 0:00:32]} 38. Kh2 {[%clk 0:00:39]}  Rf7 {[%clk 0:00:18]} 39. Rxc8 {[%clk 0:00:37]}  Bxc8 {[%clk 0:00:18]} 40. Qxc8 {[%clk 0:00:38]}  Qe3 {[%clk 0:00:18]} 41. fxe5 {[%clk 0:00:35]}  fxe5 {[%clk 0:00:15]} 42. Qc2 {[%clk 0:00:35]}  Qd4 {[%clk 0:00:12]} 43. Qe2 {[%clk 0:00:34]}  Qc3 {[%clk 0:00:11]} 44. Nh1 {[%clk 0:00:33]}  Qd4 {[%clk 0:00:09]} 45. Ng5 {[%clk 0:00:33]}  Rf4 {[%clk 0:00:09]} 46. g3 {[%clk 0:00:30]}  Rg4 {[%clk 0:00:05]} 47. Ne6+ {[%clk 0:00:29]}  Kf6 {[%clk 0:00:06]} 48. Nxd4 {[%clk 0:00:29]}  exd4 {[%clk 0:00:06]} 49. Nf2 {[%clk 0:00:28]} 1-0


[Site "https://www.chess.com"]

[Event "Titled Tuesday Blitz July 26 Early 2022"]
[White "Hakobyan, Aram"]
[Black "Hafiz, Arif Abdul"]
[WhiteFideId "13306677"]
[BlackFideId "7104227"]
[WhiteElo "2557"]
[BlackElo "2198"]
[Result "1-0"]
[Round "05"]
[TimeControl "180+1"]
[Date "2022.07.26"]
[WhiteClock "0:01:45"]
[BlackClock "0:00:05"]

1. e4 {[%clk 0:03:00]}  Nc6 {[%clk 0:03:00]} 2. Nf3 {[%clk 0:03:00]}  e5 {[%clk 0:03:00]} 3. Bb5 {[%clk 0:03:00]}  Nf6 {[%clk 0:03:00]} 4. O-O {[%clk 0:03:00]}  Nxe4 {[%clk 0:03:00]} 5. d4 {[%clk 0:03:01]}  Nd6 {[%clk 0:02:59]} 6. dxe5 {[%clk 0:03:02]}  Nxb5 {[%clk 0:02:59]} 7. a4 {[%clk 0:03:03]}  Nbd4 {[%clk 0:03:00]} 8. Nxd4 {[%clk 0:03:03]}  d5 {[%clk 0:03:01]} 9. Nxc6 {[%clk 0:03:03]}  bxc6 {[%clk 0:03:01]} 10. Qd3 {[%clk 0:03:04]}  Be7 {[%clk 0:02:54]} 11. Qg3 {[%clk 0:03:04]}  g6 {[%clk 0:02:24]} 12. Bh6 {[%clk 0:03:04]}  Be6 {[%clk 0:02:24]} 13. Nd2 {[%clk 0:03:04]}  Qb8 {[%clk 0:02:22]} 14. Nb3 {[%clk 0:03:04]}  c5 {[%clk 0:02:20]} 15. Rfd1 {[%clk 0:03:02]}  Qb4 {[%clk 0:02:18]} 16. Bg7 {[%clk 0:02:57]}  Rg8 {[%clk 0:02:17]} 17. Bf6 {[%clk 0:02:58]}  Bxf6 {[%clk 0:02:16]} 18. exf6 {[%clk 0:02:59]}  O-O-O {[%clk 0:02:15]} 19. Nd2 {[%clk 0:02:40]}  a5 {[%clk 0:02:06]} 20. c3 {[%clk 0:02:36]}  Qb6 {[%clk 0:02:06]} 21. b4 {[%clk 0:02:34]}  axb4 {[%clk 0:02:01]} 22. cxb4 {[%clk 0:02:35]}  c4 {[%clk 0:01:43]} 23. a5 {[%clk 0:02:33]}  Qxb4 {[%clk 0:01:40]} 24. a6 {[%clk 0:02:32]}  Kd7 {[%clk 0:01:32]} 25. Nxc4 {[%clk 0:02:26]}  Qxc4 {[%clk 0:00:47]} 26. Rdc1 {[%clk 0:02:26]}  Qxc1+ {[%clk 0:00:36]} 27. Rxc1 {[%clk 0:02:26]}  Rc8 {[%clk 0:00:34]} 28. a7 {[%clk 0:02:26]}  c5 {[%clk 0:00:32]} 29. Rb1 {[%clk 0:02:25]}  Rc7 {[%clk 0:00:22]} 30. Qa3 {[%clk 0:02:12]}  Ra8 {[%clk 0:00:21]} 31. Qa4+ {[%clk 0:02:12]}  Kd6 {[%clk 0:00:20]} 32. Qf4+ {[%clk 0:01:59]}  Kd7 {[%clk 0:00:21]} 33. Rb6 {[%clk 0:01:58]}  Raxa7 {[%clk 0:00:11]} 34. Qd6+ {[%clk 0:01:57]}  Ke8 {[%clk 0:00:10]} 35. h4 {[%clk 0:01:46]}  Rc8 {[%clk 0:00:08]} 36. Rb8 {[%clk 0:01:45]}  Ra1+ {[%clk 0:00:04]} 37. Kh2 {[%clk 0:01:46]}  Rxb8 {[%clk 0:00:05]} 38. Qe7# {[%clk 0:01:45]} 1-0


[Site "https://www.chess.com"]